[Event "Titled Tuesday Blitz May 9 Early 2023"]
[White "KSho99"]
[Black "Andrews, Todd"]
[BlackFideId "2012456"]
[WhiteElo "2162"]
[BlackElo "2173"]
[Result "0-1"]
[Round "05"]
[TimeControl "180+2"]
[Date "2023.05.09"]
[WhiteClock "0:00:00"]
[BlackClock "0:00:47"]

1. Nf3 {[%clk 0:03:00]}  Nf6 {[%clk 0:02:59]} 2. d4 {[%clk 0:03:01]}  c5 {[%clk 0:02:58]} 3. d5 {[%clk 0:02:58]}  b5 {[%clk 0:02:58]} 4. a4 {[%clk 0:02:48]}  Bb7 {[%clk 0:02:57]} 5. e4 {[%clk 0:02:35]}  Nxe4 {[%clk 0:02:56]} 6. axb5 {[%clk 0:02:30]}  g6 {[%clk 0:02:47]} 7. c4 {[%clk 0:02:24]}  Bg7 {[%clk 0:02:46]} 8. Bd3 {[%clk 0:02:23]}  Nf6 {[%clk 0:02:45]} 9. Nc3 {[%clk 0:02:14]}  O-O {[%clk 0:02:45]} 10. O-O {[%clk 0:02:12]}  d6 {[%clk 0:02:45]} 11. Re1 {[%clk 0:02:04]}  Nbd7 {[%clk 0:02:45]} 12. Bf4 {[%clk 0:01:58]}  Ng4 {[%clk 0:02:34]} 13. Qd2 {[%clk 0:01:40]}  Nge5 {[%clk 0:02:30]} 14. Nxe5 {[%clk 0:01:37]}  Nxe5 {[%clk 0:02:31]} 15. Bf1 {[%clk 0:01:32]}  a6 {[%clk 0:02:27]} 16. Bh6 {[%clk 0:01:25]}  axb5 {[%clk 0:02:22]} 17. Nxb5 {[%clk 0:01:23]}  Bxh6 {[%clk 0:01:47]} 18. Qxh6 {[%clk 0:01:22]}  Qd7 {[%clk 0:01:47]} 19. Nc3 {[%clk 0:01:01]}  Qf5 {[%clk 0:01:32]} 20. Rad1 {[%clk 0:00:51]}  Rfe8 {[%clk 0:01:22]} 21. Ne4 {[%clk 0:00:33]}  Ra2 {[%clk 0:01:12]} 22. Ng5 {[%clk 0:00:25]}  Qxf2+ {[%clk 0:01:06]} 23. Kh1 {[%clk 0:00:22]}  Qf6 {[%clk 0:00:54]} 24. Qxh7+ {[%clk 0:00:07]}  Kf8 {[%clk 0:00:54]} 25. Re3 {[%clk 0:00:03]}  Qg7 {[%clk 0:00:49]} 26. Qxg7+ {[%clk 0:00:01]}  Kxg7 {[%clk 0:00:49]} 27. Ne4 {[%clk 0:00:00]}  Rxb2 {[%clk 0:00:47]} 0-1


[Site "https://www.chess.com"]

[Event "Titled Tuesday Blitz May 9 Early 2023"]
[White "Tuleyeva-Aketayeva, Dana"]
[Black "Llanos, Guillermo"]
[WhiteFideId "13701932"]
[BlackFideId "100358"]
[WhiteElo "2030"]
[BlackElo "2225"]
[Result "1-0"]
[Round "05"]
[TimeControl "180+2"]
[Date "2023.05.09"]
[WhiteClock "0:00:03"]
[BlackClock "0:00:00"]

1. d4 {[%clk 0:03:00]}  f5 {[%clk 0:02:56]} 2. Nf3 {[%clk 0:02:59]}  Nf6 {[%clk 0:02:55]} 3. g3 {[%clk 0:02:59]}  e6 {[%clk 0:02:55]} 4. Bg2 {[%clk 0:03:00]}  d5 {[%clk 0:02:55]} 5. O-O {[%clk 0:03:00]}  Bd6 {[%clk 0:02:55]} 6. c4 {[%clk 0:03:01]}  c6 {[%clk 0:02:55]} 7. Nc3 {[%clk 0:03:00]}  O-O {[%clk 0:02:54]} 8. Rb1 {[%clk 0:02:59]}  b6 {[%clk 0:02:53]} 9. b4 {[%clk 0:02:58]}  Bb7 {[%clk 0:02:52]} 10. Nd2 {[%clk 0:02:53]}  Qe7 {[%clk 0:02:49]} 11. b5 {[%clk 0:02:35]}  Ne4 {[%clk 0:02:43]} 12. Ndxe4 {[%clk 0:02:24]}  fxe4 {[%clk 0:02:42]} 13. Be3 {[%clk 0:02:22]}  Kh8 {[%clk 0:02:16]} 14. a4 {[%clk 0:02:16]}  Nd7 {[%clk 0:02:01]} 15. Qc2 {[%clk 0:01:57]}  c5 {[%clk 0:01:54]} 16. Rbd1 {[%clk 0:01:20]}  cxd4 {[%clk 0:01:49]} 17. Bxd4 {[%clk 0:01:17]}  e5 {[%clk 0:01:49]} 18. Bxb6 {[%clk 0:00:31]}  Nxb6 {[%clk 0:01:29]} 19. cxd5 {[%clk 0:00:21]}  Rac8 {[%clk 0:01:27]} 20. Qb3 {[%clk 0:00:20]}  e3 {[%clk 0:01:12]} 21. fxe3 {[%clk 0:00:17]}  Rxf1+ {[%clk 0:01:10]} 22. Bxf1 {[%clk 0:00:17]}  Nc4 {[%clk 0:01:08]} 23. Ne4 {[%clk 0:00:13]}  h6 {[%clk 0:00:35]} 24. Bh3 {[%clk 0:00:12]}  Rc7 {[%clk 0:00:33]} 25. Rc1 {[%clk 0:00:08]}  Na5 {[%clk 0:00:31]} 26. Qd1 {[%clk 0:00:07]}  Rxc1 {[%clk 0:00:30]} 27. Qxc1 {[%clk 0:00:08]}  Qc7 {[%clk 0:00:26]} 28. Qxc7 {[%clk 0:00:05]}  Bxc7 {[%clk 0:00:25]} 29. d6 {[%clk 0:00:05]}  Bd8 {[%clk 0:00:23]} 30. Nc5 {[%clk 0:00:05]}  Bd5 {[%clk 0:00:19]} 31. Be6 {[%clk 0:00:05]}  Bxe6 {[%clk 0:00:16]} 32. Nxe6 {[%clk 0:00:05]}  Nb7 {[%clk 0:00:17]} 33. d7 {[%clk 0:00:03]}  Kg8 {[%clk 0:00:16]} 34. a5 {[%clk 0:00:03]}  Kf7 {[%clk 0:00:16]} 35. a6 {[%clk 0:00:03]}  Nd6 {[%clk 0:00:10]} 36. Nxd8+ {[%clk 0:00:03]}  Ke7 {[%clk 0:00:10]} 37. b6 {[%clk 0:00:03]}  Nb5 {[%clk 0:00:06]} 38. b7 {[%clk 0:00:02]}  Kxd7 {[%clk 0:00:03]} 39. b8=Q {[%clk 0:00:02]}  e4 {[%clk 0:00:03]} 40. Qxb5+ {[%clk 0:00:02]}  Kxd8 {[%clk 0:00:00]} 41. Qd5+ {[%clk 0:00:03]} 1-0


[Site "https://www.chess.com"]

[Event "Titled Tuesday Blitz May 9 Early 2023"]
[White "Sailer, Mike"]
[Black "Luberanski, Jakub"]
[WhiteFideId "2012901"]
[BlackFideId "21830509"]
[WhiteElo "2109"]
[BlackElo "2255"]
[Result "0-1"]
[Round "05"]
[TimeControl "180+2"]
[Date "2023.05.09"]
[WhiteClock "0:00:07"]
[BlackClock "0:00:46"]

1. d4 {[%clk 0:02:48]}  Nf6 {[%clk 0:02:58]} 2. Bg5 {[%clk 0:02:48]}  Ne4 {[%clk 0:02:53]} 3. Bf4 {[%clk 0:02:48]}  d5 {[%clk 0:02:51]} 4. f3 {[%clk 0:02:48]}  Nf6 {[%clk 0:02:51]} 5. Nc3 {[%clk 0:02:49]}  Bf5 {[%clk 0:02:42]} 6. g4 {[%clk 0:02:42]}  Bg6 {[%clk 0:02:35]} 7. h4 {[%clk 0:02:42]}  h6 {[%clk 0:02:28]} 8. Nb5 {[%clk 0:02:19]}  Na6 {[%clk 0:02:27]} 9. e3 {[%clk 0:02:19]}  c6 {[%clk 0:02:19]} 10. Nc3 {[%clk 0:02:15]}  e6 {[%clk 0:02:17]} 11. Bd3 {[%clk 0:02:04]}  Bxd3 {[%clk 0:02:12]} 12. Qxd3 {[%clk 0:02:04]}  Qb6 {[%clk 0:02:08]} 13. O-O-O {[%clk 0:02:02]}  Qa5 {[%clk 0:01:51]} 14. Nge2 {[%clk 0:01:58]}  Nb4 {[%clk 0:01:49]} 15. Qd2 {[%clk 0:01:53]}  Nxa2+ {[%clk 0:01:49]} 16. Kb1 {[%clk 0:01:43]}  Nxc3+ {[%clk 0:01:48]} 17. Nxc3 {[%clk 0:01:43]}  Bb4 {[%clk 0:01:46]} 18. g5 {[%clk 0:01:40]}  hxg5 {[%clk 0:01:38]} 19. hxg5 {[%clk 0:01:40]}  Nh5 {[%clk 0:01:38]} 20. Be5 {[%clk 0:01:36]}  O-O-O {[%clk 0:01:29]} 21. Rh4 {[%clk 0:01:17]}  f6 {[%clk 0:01:22]} 22. gxf6 {[%clk 0:01:12]}  gxf6 {[%clk 0:01:23]} 23. Bh2 {[%clk 0:00:51]}  Bxc3 {[%clk 0:01:19]} 24. bxc3 {[%clk 0:00:46]}  Ng7 {[%clk 0:01:15]} 25. Rxh8 {[%clk 0:00:40]}  Rxh8 {[%clk 0:01:16]} 26. Qg2 {[%clk 0:00:34]}  Nf5 {[%clk 0:00:54]} 27. e4 {[%clk 0:00:32]}  Ne3 {[%clk 0:00:52]} 28. Qg3 {[%clk 0:00:25]}  Rxh2 {[%clk 0:00:51]} 29. Qxh2 {[%clk 0:00:23]}  Nxd1 {[%clk 0:00:50]} 30. Qd6 {[%clk 0:00:09]}  Nxc3+ {[%clk 0:00:49]} 31. Kb2 {[%clk 0:00:09]}  Na4+ {[%clk 0:00:47]} 32. Kb3 {[%clk 0:00:07]}  Qc3+ {[%clk 0:00:46]} 33. Kxa4 {[%clk 0:00:07]}  b5# {[%clk 0:00:46]} 0-1


[Site "https://www.chess.com"]

[Event "Titled Tuesday Blitz May 9 Early 2023"]
[White "Melikhov, Evgeny V."]
[Black "Levine, David"]
[WhiteFideId "4122046"]
[BlackFideId "2011611"]
[WhiteElo "2158"]
[BlackElo "2129"]
[Result "1-0"]
[Round "05"]
[TimeControl "180+2"]
[Date "2023.05.09"]
[WhiteClock "0:00:28"]
[BlackClock "0:00:00"]

1. d4 {[%clk 0:03:00]}  d5 {[%clk 0:02:59]} 2. c4 {[%clk 0:03:00]}  dxc4 {[%clk 0:02:59]} 3. Nf3 {[%clk 0:02:59]}  Nf6 {[%clk 0:02:58]} 4. e3 {[%clk 0:03:00]}  e6 {[%clk 0:02:57]} 5. Bxc4 {[%clk 0:03:00]}  c5 {[%clk 0:02:57]} 6. O-O {[%clk 0:02:59]}  Nc6 {[%clk 0:02:57]} 7. Qe2 {[%clk 0:02:58]}  cxd4 {[%clk 0:02:57]} 8. Rd1 {[%clk 0:02:58]}  Be7 {[%clk 0:02:56]} 9. exd4 {[%clk 0:02:58]}  O-O {[%clk 0:02:56]} 10. Nc3 {[%clk 0:02:58]}  Nb4 {[%clk 0:02:54]} 11. Bg5 {[%clk 0:02:54]}  Bd7 {[%clk 0:02:48]} 12. d5 {[%clk 0:02:44]}  exd5 {[%clk 0:02:28]} 13. Bxf6 {[%clk 0:02:15]}  Bxf6 {[%clk 0:02:23]} 14. Nxd5 {[%clk 0:02:13]}  Nxd5 {[%clk 0:02:18]} 15. Bxd5 {[%clk 0:02:13]}  Qc8 {[%clk 0:02:17]} 16. Rac1 {[%clk 0:02:08]}  Bc6 {[%clk 0:02:16]} 17. Bxc6 {[%clk 0:02:07]}  bxc6 {[%clk 0:02:16]} 18. b3 {[%clk 0:02:05]}  Qc7 {[%clk 0:01:58]} 19. Qe4 {[%clk 0:01:49]}  Rfc8 {[%clk 0:01:53]} 20. Rc4 {[%clk 0:01:43]}  Qa5 {[%clk 0:01:46]} 21. Ra4 {[%clk 0:01:35]}  Qb5 {[%clk 0:01:42]} 22. Qc4 {[%clk 0:01:34]}  a5 {[%clk 0:01:34]} 23. Rc1 {[%clk 0:01:29]}  g6 {[%clk 0:01:27]} 24. h3 {[%clk 0:01:21]}  Qb6 {[%clk 0:01:22]} 25. Qc5 {[%clk 0:01:16]}  Qa6 {[%clk 0:01:07]} 26. Rac4 {[%clk 0:01:14]}  Kg7 {[%clk 0:01:01]} 27. Qd6 {[%clk 0:01:09]}  Qb5 {[%clk 0:00:28]} 28. Rxc6 {[%clk 0:01:02]}  Rxc6 {[%clk 0:00:22]} 29. Qxc6 {[%clk 0:01:02]}  Qxc6 {[%clk 0:00:20]} 30. Rxc6 {[%clk 0:01:02]}  a4 {[%clk 0:00:21]} 31. b4 {[%clk 0:01:02]}  a3 {[%clk 0:00:19]} 32. b5 {[%clk 0:01:00]}  Ra5 {[%clk 0:00:17]} 33. Ra6 {[%clk 0:00:56]}  Rxb5 {[%clk 0:00:16]} 34. Rxa3 {[%clk 0:00:56]}  Rb1+ {[%clk 0:00:14]} 35. Kh2 {[%clk 0:00:56]}  Rb2 {[%clk 0:00:11]} 36. Kg3 {[%clk 0:00:55]}  h5 {[%clk 0:00:11]} 37. Ra7 {[%clk 0:00:45]}  g5 {[%clk 0:00:11]} 38. h4 {[%clk 0:00:39]}  g4 {[%clk 0:00:06]} 39. Ng5 {[%clk 0:00:39]}  Bxg5 {[%clk 0:00:05]} 40. hxg5 {[%clk 0:00:39]}  Kg6 {[%clk 0:00:05]} 41. f4 {[%clk 0:00:31]}  h4+ {[%clk 0:00:02]} 42. Kxg4 {[%clk 0:00:28]}  Rxg2+ {[%clk 0:00:00]} 43. Kxh4 {[%clk 0:00:28]} 1-0


[Site "https://www.chess.com"]

[Event "Titled Tuesday Blitz May 9 Early 2023"]
[White "Castillo Pena, Patricia Evarista"]
[Black "Umarov, Sabir"]
[WhiteFideId "6412106"]
[BlackFideId "14200538"]
[WhiteElo "1919"]
[BlackElo "2352"]
[Result "0-1"]
[Round "05"]
[TimeControl "180+2"]
[Date "2023.05.09"]
[WhiteClock "0:00:00"]
[BlackClock "0:00:26"]

1. d4 {[%clk 0:03:00]}  g6 {[%clk 0:02:59]} 2. e4 {[%clk 0:02:58]}  Bg7 {[%clk 0:02:58]} 3. Nf3 {[%clk 0:02:55]}  c6 {[%clk 0:02:58]} 4. Nc3 {[%clk 0:02:52]}  d5 {[%clk 0:02:57]} 5. exd5 {[%clk 0:02:50]}  cxd5 {[%clk 0:02:56]} 6. Be2 {[%clk 0:02:48]}  Nf6 {[%clk 0:02:56]} 7. O-O {[%clk 0:02:48]}  O-O {[%clk 0:02:56]} 8. h3 {[%clk 0:02:48]}  Nc6 {[%clk 0:02:56]} 9. a3 {[%clk 0:02:41]}  Ne4 {[%clk 0:02:53]} 10. Be3 {[%clk 0:02:26]}  Nxc3 {[%clk 0:02:51]} 11. bxc3 {[%clk 0:02:26]}  Na5 {[%clk 0:02:51]} 12. Rb1 {[%clk 0:02:23]}  Qc7 {[%clk 0:02:44]} 13. Qd2 {[%clk 0:02:19]}  Bf5 {[%clk 0:02:30]} 14. Nh4 {[%clk 0:02:06]}  Bd7 {[%clk 0:02:15]} 15. Bd3 {[%clk 0:01:49]}  Rac8 {[%clk 0:02:13]} 16. Qe1 {[%clk 0:01:31]}  Rfe8 {[%clk 0:02:04]} 17. Nf3 {[%clk 0:01:25]}  b6 {[%clk 0:01:56]} 18. Bd2 {[%clk 0:01:23]}  f6 {[%clk 0:01:50]} 19. Qc1 {[%clk 0:01:21]}  e5 {[%clk 0:01:49]} 20. dxe5 {[%clk 0:01:21]}  fxe5 {[%clk 0:01:49]} 21. Bb5 {[%clk 0:01:13]}  Nc4 {[%clk 0:01:34]} 22. Bxc4 {[%clk 0:00:51]}  Qxc4 {[%clk 0:01:34]} 23. Re1 {[%clk 0:00:47]}  Bf5 {[%clk 0:01:01]} 24. Rb4 {[%clk 0:00:44]}  Qc6 {[%clk 0:00:57]} 25. Nh4 {[%clk 0:00:31]}  e4 {[%clk 0:00:42]} 26. Nxf5 {[%clk 0:00:28]}  gxf5 {[%clk 0:00:42]} 27. c4 {[%clk 0:00:21]}  d4 {[%clk 0:00:36]} 28. Bg5 {[%clk 0:00:17]}  Qg6 {[%clk 0:00:35]} 29. Kh1 {[%clk 0:00:14]}  Rc6 {[%clk 0:00:33]} 30. Qd2 {[%clk 0:00:12]}  Rec8 {[%clk 0:00:31]} 31. Bf4 {[%clk 0:00:00]}  h6 {[%clk 0:00:26]} 0-1


[Site "https://www.chess.com"]

[Event "Titled Tuesday Blitz May 9 Early 2023"]
[White "Viasus, Juan Diego"]
[Black "Ardila, Oscar Humberto"]
[WhiteFideId "4464346"]
[BlackFideId "4404742"]
[WhiteElo "1249"]
[BlackElo "1918"]
[Result "0-1"]
[Round "05"]
[TimeControl "180+2"]
[Date "2023.05.09"]
[WhiteClock "0:02:08"]
[BlackClock "0:02:21"]

1. d4 {[%clk 0:03:00]}  Nf6 {[%clk 0:02:45]} 2. Bf4 {[%clk 0:02:59]}  g6 {[%clk 0:02:45]} 3. Nc3 {[%clk 0:02:59]}  Bg7 {[%clk 0:02:45]} 4. e4 {[%clk 0:02:58]}  d6 {[%clk 0:02:46]} 5. Qd2 {[%clk 0:02:58]}  Nbd7 {[%clk 0:02:46]} 6. O-O-O {[%clk 0:02:58]}  h6 {[%clk 0:02:46]} 7. f3 {[%clk 0:02:58]}  c6 {[%clk 0:02:45]} 8. Bc4 {[%clk 0:02:36]}  b5 {[%clk 0:02:45]} 9. Bb3 {[%clk 0:02:36]}  a5 {[%clk 0:02:45]} 10. a4 {[%clk 0:02:36]}  b4 {[%clk 0:02:43]} 11. Nb1 {[%clk 0:02:37]}  Ba6 {[%clk 0:02:40]} 12. Ne2 {[%clk 0:02:35]}  Qb6 {[%clk 0:02:39]} 13. Rhe1 {[%clk 0:02:35]}  c5 {[%clk 0:02:39]} 14. e5 {[%clk 0:02:36]}  Nh5 {[%clk 0:02:35]} 15. exd6 {[%clk 0:02:35]}  c4 {[%clk 0:02:24]} 16. dxe7 {[%clk 0:02:12]}  cxb3 {[%clk 0:02:23]} 17. cxb3 {[%clk 0:02:12]}  Rc8+ {[%clk 0:02:21]} 18. Nec3 {[%clk 0:02:08]}  bxc3 {[%clk 0:02:21]} 0-1


[Site "https://www.chess.com"]

[Event "Titled Tuesday Blitz May 9 Early 2023"]
[White "Panico, Nick"]
[Black "Womacka, Mathias"]
[WhiteFideId "2026724"]
[BlackFideId "4611390"]
[WhiteElo "1982"]
[BlackElo "2377"]
[Result "0-1"]
[Round "05"]
[TimeControl "180+2"]
[Date "2023.05.09"]
[WhiteClock "0:01:27"]
[BlackClock "0:01:08"]

1. f4 {[%clk 0:02:59]}  c5 {[%clk 0:02:58]} 2. e4 {[%clk 0:02:58]}  d5 {[%clk 0:02:57]} 3. e5 {[%clk 0:02:56]}  Nc6 {[%clk 0:02:56]} 4. Nf3 {[%clk 0:02:55]}  Bg4 {[%clk 0:02:55]} 5. Be2 {[%clk 0:02:52]}  f6 {[%clk 0:02:55]} 6. exf6 {[%clk 0:02:21]}  exf6 {[%clk 0:02:56]} 7. O-O {[%clk 0:02:19]}  Bd6 {[%clk 0:02:55]} 8. g3 {[%clk 0:02:13]}  Nge7 {[%clk 0:02:51]} 9. Na3 {[%clk 0:02:11]}  O-O {[%clk 0:02:36]} 10. c4 {[%clk 0:02:06]}  d4 {[%clk 0:02:28]} 11. d3 {[%clk 0:02:06]}  Nf5 {[%clk 0:02:22]} 12. Nc2 {[%clk 0:02:05]}  Re8 {[%clk 0:02:15]} 13. a3 {[%clk 0:02:04]}  h5 {[%clk 0:01:50]} 14. Kg2 {[%clk 0:02:04]}  h4 {[%clk 0:01:48]} 15. Rb1 {[%clk 0:01:57]}  Qd7 {[%clk 0:01:40]} 16. b4 {[%clk 0:01:54]}  Bh3+ {[%clk 0:01:31]} 17. Kg1 {[%clk 0:01:51]}  Bxf1 {[%clk 0:01:29]} 18. Qxf1 {[%clk 0:01:46]}  hxg3 {[%clk 0:01:29]} 19. b5 {[%clk 0:01:46]}  Nce7 {[%clk 0:01:20]} 20. Bd2 {[%clk 0:01:37]}  Ng6 {[%clk 0:01:14]} 21. Qh3 {[%clk 0:01:27]}  Rxe2 {[%clk 0:01:08]} 0-1


[Site "https://www.chess.com"]

[Event "Titled Tuesday Blitz May 9 Early 2023"]
[White "Howell, David W L"]
[Black "Nastase, Robert-Paul"]
[WhiteFideId "410608"]
[BlackFideId "1221175"]
[WhiteElo "2567"]
[BlackElo "2175"]
[Result "1-0"]
[Round "05"]
[TimeControl "180+2"]
[Date "2023.05.09"]
[WhiteClock "0:00:54"]
[BlackClock "0:00:01"]

1. d4 {[%clk 0:02:55]}  Nf6 {[%clk 0:02:51]} 2. c4 {[%clk 0:02:54]}  e6 {[%clk 0:02:51]} 3. Nf3 {[%clk 0:02:53]}  c5 {[%clk 0:02:51]} 4. d5 {[%clk 0:02:48]}  d6 {[%clk 0:02:50]} 5. Nc3 {[%clk 0:02:47]}  exd5 {[%clk 0:02:50]} 6. cxd5 {[%clk 0:02:48]}  g6 {[%clk 0:02:47]} 7. Nd2 {[%clk 0:02:41]}  Nbd7 {[%clk 0:02:46]} 8. e4 {[%clk 0:02:41]}  Bg7 {[%clk 0:02:39]} 9. Be2 {[%clk 0:02:37]}  O-O {[%clk 0:02:38]} 10. O-O {[%clk 0:02:38]}  Re8 {[%clk 0:02:30]} 11. a4 {[%clk 0:02:30]}  Ne5 {[%clk 0:02:13]} 12. Re1 {[%clk 0:02:22]}  g5 {[%clk 0:02:07]} 13. Nf1 {[%clk 0:02:19]}  h6 {[%clk 0:02:00]} 14. Ng3 {[%clk 0:02:03]}  Ng6 {[%clk 0:01:55]} 15. Bb5 {[%clk 0:01:58]}  Re7 {[%clk 0:01:48]} 16. Bd2 {[%clk 0:01:51]}  a6 {[%clk 0:01:47]} 17. Bf1 {[%clk 0:01:47]}  b6 {[%clk 0:01:48]} 18. Rb1 {[%clk 0:01:45]}  Qc7 {[%clk 0:01:15]} 19. b4 {[%clk 0:01:39]}  c4 {[%clk 0:01:05]} 20. Qc2 {[%clk 0:01:30]}  Bd7 {[%clk 0:01:01]} 21. b5 {[%clk 0:01:12]}  a5 {[%clk 0:00:31]} 22. Rbc1 {[%clk 0:01:10]}  Rc8 {[%clk 0:00:31]} 23. f3 {[%clk 0:01:06]}  Ne5 {[%clk 0:00:20]} 24. Be3 {[%clk 0:01:06]}  Nh7 {[%clk 0:00:12]} 25. Qf2 {[%clk 0:01:05]}  Rb8 {[%clk 0:00:12]} 26. Kh1 {[%clk 0:01:05]}  Ree8 {[%clk 0:00:11]} 27. Bd4 {[%clk 0:01:05]}  Rf8 {[%clk 0:00:10]} 28. Nb1 {[%clk 0:00:59]}  Rb7 {[%clk 0:00:08]} 29. Nd2 {[%clk 0:00:59]}  f5 {[%clk 0:00:06]} 30. Nxc4 {[%clk 0:00:59]}  Nxc4 {[%clk 0:00:05]} 31. Rxc4 {[%clk 0:00:58]}  Qd8 {[%clk 0:00:06]} 32. Bxg7 {[%clk 0:00:56]}  Kxg7 {[%clk 0:00:07]} 33. Qd4+ {[%clk 0:00:56]}  Nf6 {[%clk 0:00:07]} 34. exf5 {[%clk 0:00:56]}  Re8 {[%clk 0:00:06]} 35. Re6 {[%clk 0:00:54]}  Bxe6 {[%clk 0:00:01]} 36. fxe6 {[%clk 0:00:54]} 1-0


[Site "https://www.chess.com"]

[Event "Titled Tuesday Blitz May 9 Early 2023"]
[White "Sanhueza, Cristian"]
[Black "Acikel, Mert"]
[WhiteFideId "116815"]
[BlackFideId "12956465"]
[WhiteElo "2174"]
[BlackElo "2097"]
[Result "1-0"]
[Round "05"]
[TimeControl "180+2"]
[Date "2023.05.09"]
[WhiteClock "0:02:08"]
[BlackClock "0:01:43"]

1. e4 {[%clk 0:03:00]}  e5 {[%clk 0:02:58]} 2. Nf3 {[%clk 0:03:01]}  Nc6 {[%clk 0:02:58]} 3. Bb5 {[%clk 0:03:01]}  a6 {[%clk 0:02:58]} 4. Ba4 {[%clk 0:03:01]}  Nf6 {[%clk 0:02:59]} 5. d4 {[%clk 0:02:58]}  exd4 {[%clk 0:02:56]} 6. O-O {[%clk 0:02:56]}  Be7 {[%clk 0:02:54]} 7. e5 {[%clk 0:02:55]}  Ne4 {[%clk 0:02:54]} 8. Re1 {[%clk 0:02:54]}  Nc5 {[%clk 0:02:53]} 9. Bxc6 {[%clk 0:02:49]}  dxc6 {[%clk 0:02:49]} 10. Nxd4 {[%clk 0:02:50]}  Ne6 {[%clk 0:02:40]} 11. Nf5 {[%clk 0:02:48]}  Qxd1 {[%clk 0:02:36]} 12. Rxd1 {[%clk 0:02:49]}  Bd7 {[%clk 0:02:31]} 13. Nc3 {[%clk 0:02:47]}  Rd8 {[%clk 0:02:11]} 14. Be3 {[%clk 0:02:46]}  h6 {[%clk 0:02:09]} 15. Ne4 {[%clk 0:02:41]}  b6 {[%clk 0:02:05]} 16. a4 {[%clk 0:02:33]}  a5 {[%clk 0:01:58]} 17. c3 {[%clk 0:02:28]}  Nf8 {[%clk 0:01:43]} 18. Nxg7# {[%clk 0:02:08]} 1-0


[Site "https://www.chess.com"]

[Event "Titled Tuesday Blitz May 9 Early 2023"]
[White "Cramling Bellon, Anna"]
[Black "Putri, Regita Desyari"]
[WhiteFideId "32009232"]
[BlackFideId "7109083"]
[WhiteElo "1976"]
[BlackElo "1930"]
[Result "0-1"]
[Round "05"]
[TimeControl "180+2"]
[Date "2023.05.09"]
[WhiteClock "0:00:00"]
[BlackClock "0:00:08"]

1. e3 {[%clk 0:03:00]}  d5 {[%clk 0:02:56]} 2. d3 {[%clk 0:03:00]}  Nf6 {[%clk 0:02:53]} 3. Ne2 {[%clk 0:02:58]}  c5 {[%clk 0:02:52]} 4. Ng3 {[%clk 0:02:54]}  Nc6 {[%clk 0:02:52]} 5. Nd2 {[%clk 0:02:54]}  e5 {[%clk 0:02:51]} 6. Nb3 {[%clk 0:02:54]}  Be7 {[%clk 0:02:41]} 7. Be2 {[%clk 0:02:47]}  O-O {[%clk 0:02:40]} 8. O-O {[%clk 0:02:47]}  Be6 {[%clk 0:02:32]} 9. e4 {[%clk 0:02:34]}  Rc8 {[%clk 0:02:16]} 10. exd5 {[%clk 0:02:11]}  Nxd5 {[%clk 0:02:14]} 11. Ne4 {[%clk 0:01:59]}  Nd4 {[%clk 0:02:04]} 12. c3 {[%clk 0:01:50]}  Nxe2+ {[%clk 0:01:10]} 13. Qxe2 {[%clk 0:01:48]}  Qd7 {[%clk 0:01:04]} 14. Be3 {[%clk 0:01:42]}  b6 {[%clk 0:01:03]} 15. Rfd1 {[%clk 0:01:07]}  f5 {[%clk 0:00:49]} 16. Ng5 {[%clk 0:01:05]}  f4 {[%clk 0:00:34]} 17. Nxe6 {[%clk 0:01:03]}  Qxe6 {[%clk 0:00:35]} 18. Bd2 {[%clk 0:00:56]}  f3 {[%clk 0:00:31]} 19. Qe4 {[%clk 0:00:49]}  fxg2 {[%clk 0:00:27]} 20. c4 {[%clk 0:00:30]}  Nf4 {[%clk 0:00:24]} 21. Bxf4 {[%clk 0:00:27]}  Rxf4 {[%clk 0:00:25]} 22. Qd5 {[%clk 0:00:18]}  Qxd5 {[%clk 0:00:24]} 23. cxd5 {[%clk 0:00:19]}  Rd8 {[%clk 0:00:18]} 24. Kxg2 {[%clk 0:00:12]}  Rxd5 {[%clk 0:00:18]} 25. f3 {[%clk 0:00:13]}  Rf8 {[%clk 0:00:14]} 26. a4 {[%clk 0:00:09]}  a5 {[%clk 0:00:14]} 27. Rd2 {[%clk 0:00:06]}  Rfd8 {[%clk 0:00:13]} 28. Rad1 {[%clk 0:00:06]}  Bg5 {[%clk 0:00:14]} 29. Re2 {[%clk 0:00:05]}  Rxd3 {[%clk 0:00:12]} 30. Rxd3 {[%clk 0:00:05]}  Rxd3 {[%clk 0:00:13]} 31. Rxe5 {[%clk 0:00:05]}  Rxb3 {[%clk 0:00:14]} 32. Rxg5 {[%clk 0:00:05]}  Rxb2+ {[%clk 0:00:14]} 33. Kg3 {[%clk 0:00:06]}  Rb4 {[%clk 0:00:14]} 34. Rd5 {[%clk 0:00:06]}  h6 {[%clk 0:00:12]} 35. Rd8+ {[%clk 0:00:05]}  Kh7 {[%clk 0:00:12]} 36. Rb8 {[%clk 0:00:06]}  c4 {[%clk 0:00:11]} 37. h4 {[%clk 0:00:03]}  c3 {[%clk 0:00:10]} 38. Rc8 {[%clk 0:00:04]}  Rb3 {[%clk 0:00:10]} 39. h5 {[%clk 0:00:03]}  Rb4 {[%clk 0:00:09]} 40. Rxc3 {[%clk 0:00:02]}  Rxa4 {[%clk 0:00:10]} 41. Rb3 {[%clk 0:00:02]}  Rb4 {[%clk 0:00:10]} 42. Ra3 {[%clk 0:00:01]}  a4 {[%clk 0:00:10]} 43. Kf2 {[%clk 0:00:01]}  b5 {[%clk 0:00:10]} 44. Ke2 {[%clk 0:00:01]}  Kg8 {[%clk 0:00:10]} 45. Kd2 {[%clk 0:00:01]}  Kf7 {[%clk 0:00:08]} 46. Kc3 {[%clk 0:00:01]}  Rf4 {[%clk 0:00:08]} 47. Kb2 {[%clk 0:00:01]}  Kf6 {[%clk 0:00:08]} 48. Rd3 {[%clk 0:00:01]}  Kg5 {[%clk 0:00:07]} 49. Rd5+ {[%clk 0:00:00]}  Rf5 {[%clk 0:00:08]} 0-1


[Site "https://www.chess.com"]

[Event "Titled Tuesday Blitz May 9 Early 2023"]
[White "rionelG"]
[Black "Kowalysko, Roman"]
[BlackFideId "30918510"]
[WhiteElo "2197"]
[BlackElo "2093"]
[Result "1-0"]
[Round "05"]
[TimeControl "180+2"]
[Date "2023.05.09"]
[WhiteClock "0:00:57"]
[BlackClock "0:00:10"]

1. e4 {[%clk 0:03:00]}  c5 {[%clk 0:02:39]} 2. g3 {[%clk 0:02:55]}  d5 {[%clk 0:02:33]} 3. exd5 {[%clk 0:02:56]}  Qxd5 {[%clk 0:02:32]} 4. Nf3 {[%clk 0:02:55]}  Bg4 {[%clk 0:02:18]} 5. Bg2 {[%clk 0:02:55]}  Qe4+ {[%clk 0:02:16]} 6. Kf1 {[%clk 0:02:55]}  Nc6 {[%clk 0:02:15]} 7. h3 {[%clk 0:02:55]}  Bxf3 {[%clk 0:02:12]} 8. Bxf3 {[%clk 0:02:55]}  Qg6 {[%clk 0:02:12]} 9. d3 {[%clk 0:02:52]}  Nf6 {[%clk 0:02:10]} 10. Nc3 {[%clk 0:02:50]}  e6 {[%clk 0:02:02]} 11. Bf4 {[%clk 0:02:37]}  Be7 {[%clk 0:01:54]} 12. a4 {[%clk 0:02:25]}  O-O {[%clk 0:01:53]} 13. a5 {[%clk 0:02:26]}  Nd4 {[%clk 0:01:50]} 14. Bxb7 {[%clk 0:02:22]}  Rab8 {[%clk 0:01:51]} 15. Bxb8 {[%clk 0:02:21]}  Rxb8 {[%clk 0:01:52]} 16. a6 {[%clk 0:02:19]}  Nh5 {[%clk 0:01:48]} 17. Ne2 {[%clk 0:02:07]}  Bd6 {[%clk 0:01:16]} 18. Nxd4 {[%clk 0:01:57]}  cxd4 {[%clk 0:00:47]} 19. Qf3 {[%clk 0:01:57]}  Bxg3 {[%clk 0:00:21]} 20. fxg3 {[%clk 0:01:47]}  Nxg3+ {[%clk 0:00:21]} 21. Kg2 {[%clk 0:01:35]}  Nxh1+ {[%clk 0:00:21]} 22. Kxh1 {[%clk 0:01:34]}  e5 {[%clk 0:00:21]} 23. b4 {[%clk 0:01:13]}  Qd6 {[%clk 0:00:17]} 24. b5 {[%clk 0:01:11]}  h6 {[%clk 0:00:16]} 25. Qc6 {[%clk 0:01:07]}  Qe7 {[%clk 0:00:14]} 26. b6 {[%clk 0:01:07]}  Qh4 {[%clk 0:00:14]} 27. Qf3 {[%clk 0:00:59]}  axb6 {[%clk 0:00:14]} 28. a7 {[%clk 0:00:58]}  Rd8 {[%clk 0:00:10]} 29. a8=Q {[%clk 0:00:57]}  Rxa8 {[%clk 0:00:10]} 30. Rxa8+ {[%clk 0:00:57]}  Kh7 {[%clk 0:00:11]} 31. Be4+ {[%clk 0:00:57]}  g6 {[%clk 0:00:10]} 32. Qxf7# {[%clk 0:00:57]} 1-0


[Site "https://www.chess.com"]